bitfinex/quotes_ETHUSD_20230703
["timestamp","ask_amount","ask_price","bid_price","bid_amount"]
[1688347301487,1.6666,1940.8,1940.3,14.586751]
[1688347301686,2.55878816,1940.7,1940.3,15.519751]
[1688347305325,2.55878816,1940.7,1940.4,0.01654112]
[1688347305525,2.55878816,1940.7,1940.5,12.88327]
[1688347310548,3.24316698,1940.7,1940.4,0.01654112]
[1688347310860,2.4975,1940.6,1940.2,10.30798]
[1688347311005,2.55878816,1940.5,1940.2,12.88503]
[1688347312525,2.4975,1940.6,1940.3,0.01379239]
[1688347312737,2.55878816,1940.6,1940.4,12.88392]
[1688347315931,2.55878816,1940.5,1940.4,10.30714]
[1688347316139,2.55878816,1940.5,1940.4,12.88392]
[1688347343989,1.031703,1941.1,1940.4,19.583564]
[1688347344273,5.17918816,1941.0,1940.7,15.45816]
[1688347344478,2.55878816,1941.0,1940.7,15.45816]
[1688347344683,2.55878816,1941.0,1940.7,17.519274]
[1688347345181,1.031526,1941.5,1940.9,0.927]
[1688347345342,2.467,1941.5,1941.1,16.38758]
[1688347345679,1.6459,1941.7,1941.1,16.38758]
[1688347345879,2.55878816,1941.6,1941.1,16.38758]
[1688347346951,2.55878816,1941.6,1941.4,15.45276]
[1688347353653,2.467,1941.7,1941.4,15.45276]
[1688347353880,2.55878816,1941.7,1941.4,15.45276]
[1688347368104,2.55878816,1941.6,1941.4,15.45276]
[1688347368291,2.55878816,1941.6,1941.4,12.8773]
[1688347373420,2.55878816,1941.6,1941.4,10.30184]
[1688347373622,3.48978816,1941.6,1941.4,5.15092]
[1688347373824,0.34897882,1941.5,1941.4,5.15092]
[1688347373999,2.90776698,1941.5,1941.4,10.30184]
[1688347374521,2.90776698,1941.5,1941.4,12.8773]
[1688347376549,2.55878816,1941.5,1941.4,12.8773]
[1688347385299,5.05878816,1941.5,1941.4,12.8773]
[1688347403958,4.95878816,1941.5,1941.4,12.8773]
[1688347406274,4.95878816,1941.5,1941.4,12.89241022]
[1688347407477,4.95878816,1941.5,1941.4,12.8773]
[1688347411867,4.95878816,1941.5,1941.2,1.5692]
[1688347412076,4.95878816,1941.5,1941.4,7.72638]
[1688347412376,4.95878816,1941.5,1941.4,12.8773]
[1688347428875,4.95878816,1941.5,1941.4,12.89317572]
[1688347430693,4.95878816,1941.5,1941.4,12.8773]
[1688347438266,4.95878816,1941.5,1941.4,12.8914889]
[1688347438961,4.95878816,1941.5,1941.4,12.8773]
[1688347439856,4.95878816,1941.5,1941.4,12.8914889]
[1688347440529,4.95878816,1941.5,1941.4,12.8773]
[1688347450534,4.95878816,1941.5,1941.4,12.89151928]
[1688347452256,4.95878816,1941.5,1941.4,12.8773]
[1688347452565,4.95878816,1941.5,1941.4,12.89151928]
[1688347453171,4.95878816,1941.5,1941.4,12.8773]
[1688347453670,4.95878816,1941.5,1941.4,12.89240918]
[1688347453979,4.95878816,1941.5,1941.4,12.8773]
[1688347454396,4.95878816,1941.5,1941.4,10.30184]
[1688347454397,5.70559698,1941.5,1941.4,10.30184]
[1688347454668,5.70559698,1941.5,1941.4,5.15092]
[1688347456363,5.70559698,1941.5,1941.4,10.30184]
[1688347459020,5.70559698,1941.5,1941.4,12.8773]
[1688347459184,4.95878816,1941.5,1941.4,12.8773]
[1688347460168,2.5,1941.5,1941.4,12.8773]
[1688347464385,2.5,1941.5,1941.4,12.8914154]
[1688347464710,2.5,1941.5,1941.4,12.8773]
[1688347465011,2.5,1941.5,1941.4,12.89104776]
[1688347465363,2.5,1941.5,1941.4,12.8773]
[1688347469128,2.5,1941.5,1941.4,14.422581]
[1688347469341,2.5,1941.5,1941.4,15.349581]
[1688347469789,2.5,1941.5,1941.4,15.829581]
[1688347470424,2.5,1941.5,1941.4,14.902581]
[1688347471060,2.5,1941.5,1941.4,14.92687393]
[1688347472653,2.5,1941.5,1941.4,14.902581]
[1688347473058,2.5,1941.5,1941.4,14.92017054]
[1688347473560,2.5,1941.5,1941.4,14.902581]
[1688347478385,2.5,1941.5,1941.4,14.91610572]
[1688347478560,2.5,1941.5,1941.4,14.902581]
[1688347485017,2.5,1941.5,1941.4,15.835581]
[1688347485639,2.5,1941.5,1941.4,14.902581]
[1688347485841,2.5,1941.5,1941.4,14.91620377]
[1688347486025,2.5,1941.5,1941.4,14.902581]
[1688347486242,2.5,1941.5,1941.4,20.320581]
[1688347486410,2.5,1941.5,1941.4,22.14376802]
[1688347488197,2.5,1941.5,1941.4,15.830581]
[1688347488450,2.5,1941.5,1941.4,14.902581]
[1688347488748,2.5,1941.5,1941.4,12.89951569]
[1688347489272,2.5,1941.5,1941.4,13.8103]
[1688347489560,2.5,1941.5,1941.4,24.39388254]
[1688347489762,2.5,1941.5,1941.4,29.93839832]
[1688347490256,2.5,1941.5,1941.4,29.92373578]
[1688347490419,2.5,1941.5,1941.4,34.36513173]
[1688347491348,0.1,1942.0,1941.8,15.44958]
[1688347491515,0.1,1942.0,1941.9,14.28697]
[1688347491715,0.05,1942.0,1941.9,14.28697]
[1688347492986,0.05,1942.0,1941.9,13.35397]
[1688347493117,0.05,1942.0,1941.9,22.447946]
[1688347494926,0.05,1942.0,1941.9,22.46447434]
[1688347496670,0.1,1942.1,1941.9,22.46447434]
[1688347496895,0.1,1942.1,1941.9,21.53147434]
[1688347499789,0.1,1942.1,1942.0,12.89598711]
[1688347500095,0.1,1942.1,1942.0,15.78881525]
[1688347501464,0.1,1942.1,1942.0,15.76614814]
[1688347502947,0.1,1942.1,1942.0,15.77942587]
[1688347503366,0.1,1942.1,1942.0,15.76614814]
[1688347507892,0.1,1942.1,1942.0,15.78011505]
[1688347508088,0.1,1942.1,1942.0,15.76614814]
[1688347510595,0.1,1942.1,1942.0,27.25847814]
[1688347510801,0.1,1942.1,1942.0,27.27260963]
[1688347510998,0.1,1942.1,1942.0,27.25847814]
[1688347511363,0.1,1942.1,1942.0,26.33347814]
[1688347512098,0.1,1942.1,1942.0,26.347777]
[1688347513091,0.1,1942.1,1942.0,26.33347814]
[1688347513660,0.1,1942.1,1942.0,26.34851559]
[1688347513883,0.1,1942.1,1942.0,26.33347814]
[1688347514085,0.1,1942.1,1942.0,26.34750965]
[1688347514396,0.1,1942.1,1942.0,26.3470236]
[1688347515361,0.1,1942.1,1942.0,26.33347814]
[1688347515859,0.1,1942.1,1942.0,26.34835358]
[1688347518062,0.1,1942.1,1942.0,26.33347814]
[1688347518259,0.1,1942.1,1942.0,27.26647814]
[1688347518469,0.1,1942.1,1942.0,27.29071796]
[1688347520125,0.1,1942.1,1942.0,27.26647814]
[1688347521670,0.1,1942.1,1942.0,27.28438741]
[1688347522864,0.1,1942.1,1942.0,27.68671783]
[1688347524883,0.0593901,1942.3,1942.0,27.68671783]
[1688347525086,0.0593901,1942.3,1942.1,8.66667178]
[1688347525281,0.0593901,1942.3,1942.2,15.4464]
[1688347525451,0.0593901,1942.3,1942.2,15.9264]
[1688347526376,0.0593901,1942.3,1942.2,15.9431525]
[1688347528092,0.0593901,1942.3,1942.2,21.0919525]
[1688347528309,0.0593901,1942.3,1942.2,29.43781493]
[1688347528584,0.05224157,1942.3,1942.2,29.43781493]
[1688347529767,0.05224157,1942.3,1942.2,29.42106243]
[1688347529955,0.05224157,1942.3,1942.2,29.44214408]
[1688347530159,0.05224157,1942.3,1942.2,29.42106243]
[1688347530408,0.05224157,1942.3,1942.2,29.44381733]
[1688347530753,0.05224157,1942.3,1942.2,29.42106243]
[1688347530953,0.05224157,1942.3,1942.2,29.44093816]
[1688347531296,0.05224157,1942.3,1942.2,29.42106243]
[1688347531505,0.05224157,1942.3,1942.2,29.44321202]
[1688347531852,0.05224157,1942.3,1942.2,29.42106243]
[1688347532078,0.05224157,1942.3,1942.2,29.44580915]
[1688347532481,0.05224157,1942.3,1942.2,29.42106243]
[1688347532965,0.05224157,1942.3,1942.2,29.44270675]
[1688347533165,0.05224157,1942.3,1942.2,26.51484432]
[1688347533378,0.05224157,1942.3,1942.2,15.94804432]
[1688347533698,2.61102973,1942.3,1942.2,7.74484432]
[1688347533900,2.61102973,1942.3,1942.2,12.872]
[1688347534193,2.9754327,1942.3,1942.2,12.872]
[1688347534591,2.9754327,1942.3,1942.2,12.89065287]
[1688347537679,2.9754327,1942.3,1942.2,12.872]
[1688347537895,2.9754327,1942.3,1942.2,12.89370297]
[1688347538507,2.9754327,1942.3,1942.2,10.31930297]
[1688347538703,2.9754327,1942.3,1942.2,5.17050297]
[1688347538910,2.9754327,1942.3,1942.2,10.2976]
[1688347539892,2.9754327,1942.3,1942.2,10.31481467]
[1688347540414,2.9754327,1942.3,1942.2,10.2976]
[1688347545025,2.9754327,1942.3,1942.0,5.14917]
[1688347545026,3.9034327,1942.3,1942.0,5.14917]
[1688347545310,6.27643143,1942.2,1942.1,5.14894]
[1688347545607,6.27643143,1942.2,1942.0,5.14921]
[1688347545608,6.27643143,1942.2,1942.0,5.14919]
[1688347545811,6.27643143,1942.2,1942.0,10.29852]
[1688347546114,0.62764314,1942.1,1942.0,10.29852]
[1688347547277,0.62764314,1942.1,1942.0,5.14919]
[1688347548101,3.1864313,1942.1,1941.9,5.14947]
[1688347548280,2.55878816,1942.0,1941.9,10.29906]
[1688347549120,2.55878816,1942.0,1941.9,12.87385]
[1688347549278,4.49774327,1942.2,1941.9,12.87385]
[1688347549477,7.05653143,1942.2,1941.9,12.87385]
[1688347554808,4.2002,1942.2,1941.9,12.87385]
[1688347558705,2.4871,1942.2,1941.9,12.87385]
[1688347559939,3.4181,1942.2,1941.9,12.87385]
[1688347564516,2.55878816,1942.1,1941.9,10.29906]
[1688347564711,2.55878816,1942.1,1941.9,12.87385]
[1688347568243,2.4871,1942.2,1941.9,12.87385]
[1688347568450,2.4871,1942.2,1941.9,14.42037692]
[1688347568451,5.04588816,1942.2,1941.9,14.42037692]
[1688347569247,5.04588816,1942.2,1941.9,12.87385]
[1688347569439,3.49178816,1942.1,1941.9,12.87385]
[1688347569753,3.49178816,1942.1,1941.9,10.29906]
[1688347570120,2.55878816,1942.1,1941.9,12.87385]
[1688347572849,3.49178816,1942.1,1941.7,0.40903419]
[1688347573056,0.928,1942.0,1941.7,5.14997]
[1688347573250,3.48678816,1942.0,1941.7,12.87502]
[1688347573556,5.91384882,1942.1,1941.7,12.87502]
[1688347573557,2.4871,1942.2,1941.7,12.87502]
[1688347573726,2.4871,1942.2,1941.8,0.48]
[1688347574056,2.4871,1942.2,1941.9,12.87385]
[1688347576619,2.4871,1942.2,1941.9,10.29908]
[1688347578467,2.4871,1942.2,1941.9,12.87387]
[1688347578861,2.4871,1942.2,1941.9,12.89039834]
[1688347580172,2.66864157,1942.3,1941.9,19.23639834]
[1688347580173,2.55224157,1942.3,1941.9,19.23639834]
[1688347580329,2.55224157,1942.3,1942.0,7.82163983]
[1688347581679,0.05224157,1942.3,1942.0,7.82163983]
[1688347581877,0.05224157,1942.3,1942.2,5.418]
[1688347582074,0.05224157,1942.3,1942.2,7.757]
[1688347582281,0.1,1942.4,1942.2,12.48633824]
[1688347582435,0.1,1942.6,1942.4,5.918]
[1688347582633,1.4387203,1943.3,1942.6,0.5]
[1688347582881,1.4387203,1943.3,1942.7,8.47370345]
[1688347583118,1.4387203,1943.3,1942.9,0.5]
[1688347583378,1.4387203,1943.3,1943.0,5.898]
[1688347583673,1.4387203,1943.3,1943.2,0.933]
[1688347583674,1.8563891,1943.3,1943.2,0.933]
[1688347583873,1.8563891,1943.3,1943.2,1.413]
[1688347584031,1.8563891,1943.3,1943.2,3.97178816]
[1688347584238,1.4387203,1943.3,1943.2,3.97178816]
[1688347584461,1.4387203,1943.3,1943.2,9.38978816]
[1688347584661,1.4387203,1943.3,1943.2,10.32876698]
[1688347584873,1.4387203,1943.3,1943.2,2.35197882]
[1688347585174,1.4387203,1943.3,1943.2,1.413]
[1688347585536,1.4387203,1943.3,1943.2,6.84751728]
[1688347590241,1.4387203,1943.3,1943.2,9.40630544]
[1688347593337,1.4387203,1943.3,1943.2,6.84751728]
[1688347596038,1.4387203,1943.3,1943.2,22.28595728]
[1688347596239,1.4387203,1943.3,1943.2,24.51455301]
[1688347597257,1.4387203,1943.3,1943.2,22.28595728]
[1688347598655,1.4387203,1943.3,1943.2,19.71288728]
[1688347598871,1.4387203,1943.3,1943.2,5.14615]
[1688347599159,1.4387203,1943.3,1942.9,2.57346]
[1688347599324,1.4387203,1943.3,1943.2,15.43844]
[1688347599755,1.4387203,1943.3,1943.2,19.54107216]
[1688347599972,1.4387203,1943.3,1943.2,26.15481187]
[1688347600135,1.4387203,1943.3,1943.2,28.88707216]
[1688347600462,1.4387203,1943.3,1943.2,28.90358944]
[1688347600774,1.4387203,1943.3,1943.2,29.65132915]
[1688347601434,1.4387203,1943.3,1943.2,27.09254099]
[1688347605350,1.4387203,1943.3,1943.2,29.65132915]
[1688347609823,1.4387203,1943.3,1943.2,26.34480128]
[1688347611174,1.4387203,1943.3,1943.2,26.82480128]
[1688347611921,1.4387203,1943.3,1943.2,13.34537]
[1688347613017,1.4387203,1943.3,1943.2,5.62615]
[1688347613237,1.4387203,1943.3,1943.2,13.34537]
[1688347617731,1.4387203,1943.3,1943.2,12.86537]
[1688347618744,1.4387203,1943.3,1943.2,5.14615]
[1688347618885,1.4387203,1943.3,1943.1,5.14618]
[1688347619220,11.7305403,1943.3,1942.9,5.14682]
[1688347619423,6.31937403,1943.2,1942.9,5.14682]
[1688347619591,11.46569403,1943.2,1942.9,5.14682]
[1688347619794,11.46569403,1943.2,1942.8,5.18635506]
[1688347619997,8.86867403,1943.2,1942.8,12.86772]
[1688347620191,8.86867403,1943.2,1942.9,0.0164056]
[1688347620192,3.72235403,1943.2,1942.9,0.0164056]
[1688347620418,0.3722354,1943.1,1943.0,5.14668]
[1688347620611,2.5493,1943.2,1943.0,10.29336]
[1688347622942,2.5493,1943.2,1943.0,12.8667]
[1688347625809,2.5493,1943.2,1943.1,5.418]
[1688347626059,2.5493,1943.2,1943.1,5.898]
[1688347626215,2.5493,1943.2,1943.1,20.76006397]
[1688347630469,1.4387203,1943.3,1943.1,20.76006397]
[1688347630625,1.4387203,1943.3,1943.2,13.34537]
[1688347635142,1.4387203,1943.3,1943.2,18.76337]
[1688347636093,1.4387203,1943.3,1943.2,13.34537]
[1688347636286,1.4387203,1943.3,1943.2,10.7723]
[1688347640303,1.4387203,1943.3,1943.2,13.34537]
[1688347641521,1.4387203,1943.3,1943.2,21.16476271]
[1688347641664,1.4387203,1943.3,1943.2,22.09276271]
[1688347641864,1.4387203,1943.3,1943.2,24.65155087]
[1688347642108,1.4387203,1943.3,1943.2,24.66806815]
[1688347643271,0.1,1943.5,1943.4,6.346]
[1688347643585,0.1,1943.5,1943.4,30.66838374]
[1688347643794,0.1,1943.5,1943.4,30.93612345]
[1688347644182,0.1,1943.5,1943.4,22.30371529]
[1688347646475,0.1,1943.5,1943.4,19.46316558]
[1688347646714,0.1,1943.5,1943.4,15.70924]
[1688347646882,0.1,1943.5,1943.4,12.86405]
[1688347647142,0.1,1943.5,1943.4,18.28205]
[1688347647325,0.1,1943.5,1943.4,18.54978971]
[1688347647963,0.1,1943.5,1943.4,21.10857787]
[1688347648161,0.1,1943.5,1943.4,23.99130966]
[1688347648322,0.1,1943.5,1943.4,24.47130966]
[1688347650328,0.1,1943.5,1943.4,24.48782524]
[1688347650663,0.1,1943.5,1943.4,25.41582524]
[1688347653173,0.1,1943.5,1943.4,22.58929737]
[1688347653903,0.1,1943.5,1943.4,23.00701118]
[1688347654115,0.1,1943.5,1943.4,22.07901118]
[1688347659292,0.1,1943.5,1943.4,22.34675089]
[1688347661304,0.1,1943.5,1943.4,25.83353905]
[1688347661509,0.1593901,1943.6,1943.5,0.03657044]
[1688347661677,0.1593901,1943.6,1943.5,24.21147926]
[1688347662494,0.1,1943.7,1943.5,27.71147926]
[1688347662693,0.1,1943.7,1943.6,24.80216538]
[1688347662900,0.1,1943.7,1943.6,25.28216538]
[1688347663110,0.1,1943.7,1943.6,25.54990509]
[1688347663419,0.1,1943.7,1943.6,26.90790782]
[1688347663911,0.1,1943.7,1943.6,25.98290782]
[1688347664096,0.1,1943.7,1943.6,25.93290782]
[1688347665220,0.1,1943.7,1943.6,26.41290782]
[1688347666368,0.1,1943.7,1943.6,18.79837722]
[1688347666531,0.1,1943.7,1943.6,10.80783722]
[1688347666733,0.1,1943.7,1943.6,10.77018]
[1688347667055,0.1,1943.7,1943.6,13.34272]
[1688347667237,0.1,1943.7,1943.6,13.36108548]
[1688347667563,0.1,1943.7,1943.6,13.34272]
[1688347667717,0.1,1943.7,1943.6,13.3587731]
[1688347668048,0.1,1943.7,1943.6,13.34272]
[1688347668363,0.1,1943.7,1943.6,13.35673705]
[1688347668532,0.1,1943.7,1943.6,13.34272]
[1688347670146,0.1,1943.7,1943.6,13.35600723]
[1688347670479,0.1,1943.7,1943.6,13.3572037]
[1688347670680,0.1,1943.7,1943.6,13.34272]
[1688347670837,0.1,1943.7,1943.6,13.35725016]
[1688347671033,0.1,1943.7,1943.6,13.34272]
[1688347671781,0.1,1943.7,1943.6,13.35676716]
[1688347672080,0.1,1943.7,1943.6,13.34272]
[1688347688591,0.05,1943.7,1943.6,13.34272]
[1688347689417,0.978,1943.7,1943.6,0.01454643]
[1688347689820,3.385656,1943.7,1943.5,10.2906]
[1688347690030,6.745076,1943.7,1943.4,5.14544]
[1688347690178,2.4633,1943.6,1943.4,5.14544]
[1688347690379,2.4633,1943.6,1943.4,10.29106]
[1688347690583,2.4633,1943.6,1943.4,5.14544]
[1688347690791,3.3841376,1943.6,1943.4,5.14562]
[1688347691021,2.4633,1943.6,1943.4,5.14561]
[1688347691227,2.4633,1943.6,1943.4,10.29123]
[1688347691581,2.4633,1943.6,1943.4,5.14561]
[1688347692726,7.60839,1943.6,1943.4,5.14561]
[1688347693906,7.60839,1943.6,1943.3,10.2915]
[1688347694108,9.0437406,1943.6,1943.3,10.2915]
[1688347694309,9.0437406,1943.6,1943.2,5.14605]
[1688347694310,0.928,1943.5,1943.2,5.14605]
[1688347694586,10.29124,1943.4,1942.9,1.5444]
[1688347694809,6.432011,1943.4,1942.9,12.86718]
[1688347694993,11.577911,1943.4,1942.9,5.14677]
[1688347695193,14.13669916,1943.4,1942.9,10.29386]
[1688347695422,2.5976,1943.3,1942.9,10.29386]
[1688347695728,5.47234992,1943.3,1942.9,10.29386]
[1688347695981,10.61832992,1943.3,1942.9,10.29386]
[1688347696136,10.61832992,1943.3,1942.9,12.86733]
[1688347696640,5.47234992,1943.3,1942.9,12.86733]
[1688347697642,4.54434992,1943.3,1942.9,12.86733]
[1688347698003,2.5976,1943.3,1942.9,12.86733]
[1688347698430,7.74351,1943.3,1942.9,12.86733]
[1688347698747,0.928,1943.2,1942.9,5.1469]
[1688347698905,11.23029816,1943.3,1942.9,5.1469]
[1688347699105,6.26925982,1943.2,1942.9,5.1469]
[1688347699398,6.26925982,1943.2,1942.9,12.86731]
[1688347699399,3.68181798,1943.2,1942.9,12.86731]
[1688347700442,9.75604798,1943.2,1942.9,10.29384]
[1688347700661,0.928,1943.1,1942.8,10.29419]
[1688347700961,0.928,1943.0,1942.7,5.14731]
[1688347701152,8.59938,1943.0,1942.7,5.14731]
[1688347701354,3.4527,1943.0,1942.7,5.14731]
[1688347702158,8.59941,1943.0,1942.5,5.418]
[1688347702313,17.50299378,1943.0,1942.6,0.48]
[1688347702655,17.50299378,1943.0,1942.6,5.62773]
[1688347703504,17.50299378,1943.0,1942.6,10.77547]
[1688347703656,14.92965378,1943.0,1942.6,5.62773]
[1688347703818,14.92965378,1943.0,1942.6,10.77547]
[1688347704712,9.78294378,1943.0,1942.6,10.77547]
[1688347705159,4.63623378,1943.0,1942.6,13.34934]
[1688347705451,3.4527,1943.0,1942.6,15.20941171]
[1688347705663,2.5247,1943.0,1942.6,15.20941171]
[1688347708231,7.67145,1943.0,1942.6,13.61707971]
[1688347708574,11.15823816,1943.0,1942.6,12.86934]
[1688347715476,16.30498816,1943.0,1942.6,12.86934]
[1688347716291,11.15823816,1943.0,1942.6,12.86934]
[1688347717862,2.5247,1943.0,1942.6,12.86934]
[1688347718192,2.5247,1943.0,1942.7,1.286934]
[1688347718500,2.5247,1943.0,1942.8,12.86802]
[1688347720801,7.6714,1943.0,1942.8,5.14721]
[1688347723002,2.5247,1943.0,1942.8,10.29442]
[1688347724390,7.67142,1943.0,1942.8,10.29442]
[1688347725222,7.67142,1943.0,1942.8,5.14721]
[1688347725415,7.67142,1943.0,1942.8,10.29442]
[1688347725618,2.5247,1943.0,1942.8,10.29442]
[1688347729228,7.67141,1943.0,1942.8,10.29442]
[1688347730015,0.928,1942.9,1942.6,6.80131]
[1688347730213,6.07495,1942.9,1942.5,5.16452325]
[1688347730418,0.928,1942.8,1942.5,10.31240325]
[1688347731014,0.928,1942.8,1942.5,5.14788]
[1688347731223,1.701255,1942.8,1942.4,10.29619]
[1688347731434,2.6155,1942.7,1942.4,10.29619]
[1688347732530,2.6155,1942.7,1942.4,12.87032]
[1688347734968,2.6155,1942.7,1942.6,10.29548]
[1688347735165,4.94314316,1943.0,1942.6,12.86935]
[1688347735374,2.6422,1942.9,1942.6,12.86935]
[1688347743869,6.07425,1943.2,1942.6,12.86935]
[1688347744068,5.28908816,1943.1,1942.6,14.38325]
[1688347744584,5.14642,1943.1,1942.7,5.418]
[1688347744786,0.05,1943.7,1942.9,5.95881737]
[1688347744941,2.7303,1943.6,1943.1,20.85693]
[1688347745480,0.05,1943.7,1943.3,12.86437]
[1688347745652,0.05,1943.7,1943.3,13.79237]
[1688347746294,0.05,1943.7,1943.4,0.48]
[1688347746456,0.05,1943.7,1943.6,0.925]
[1688347746644,0.05,1943.7,1943.6,14.28923468]
[1688347747006,0.05,1943.7,1943.6,14.26772]
[1688347747138,0.05,1943.7,1943.6,14.28535711]
[1688347748239,0.05,1943.7,1943.6,21.38915982]
[1688347748436,0.05,1943.7,1943.6,21.37152271]
[1688347754382,0.04643003,1943.7,1943.6,21.37152271]
[1688347756788,0.04643003,1943.7,1943.6,24.19805058]
[1688347757392,0.04643003,1943.7,1943.6,24.21777786]
[1688347760201,0.04643003,1943.7,1943.6,21.39124999]
[1688347761198,0.04643003,1943.7,1943.6,21.37152271]
[1688347761381,0.04643003,1943.7,1943.6,21.38721467]
[1688347763191,0.04643003,1943.7,1943.6,21.37152271]
[1688347763690,0.04643003,1943.7,1943.6,21.79814695]
[1688347767126,0.04643003,1943.7,1943.6,21.38908698]
[1688347768697,0.04643003,1943.7,1943.6,21.37152271]
[1688347769384,0.04643003,1943.7,1943.6,21.39014457]
[1688347771119,0.04643003,1943.7,1943.6,21.37152271]
[1688347771549,0.04643003,1943.7,1943.6,15.9746912]
[1688347771753,0.04643003,1943.7,1943.6,10.79134849]
[1688347771954,0.04643003,1943.7,1943.6,10.31134849]
[1688347772449,0.04643003,1943.7,1943.6,10.29018]
[1688347772752,0.04643003,1943.7,1943.6,5.14509]
[1688347772956,0.04643003,1943.7,1943.6,5.17058741]
[1688347773822,0.04643003,1943.7,1943.6,5.14509]
[1688347774026,0.04643003,1943.7,1943.6,10.29018]
[1688347774553,0.04643003,1943.7,1943.6,12.86272]
[1688347776124,0.04643003,1943.7,1943.6,10.29018]
[1688347776538,0.04643003,1943.7,1943.6,5.14509]
[1688347777322,0.04643003,1943.7,1943.6,12.86272]
[1688347777517,0.04643003,1943.7,1943.6,14.148992]
[1688347777732,0.04643003,1943.7,1943.6,14.41673171]
[1688347778232,0.04643003,1943.7,1943.6,14.89673171]
[1688347780475,0.04643003,1943.7,1943.6,20.31473171]
[1688347784895,0.04643003,1943.7,1943.6,21.23973171]
[1688347785803,0.04643003,1943.7,1943.6,21.25855543]
[1688347786100,0.04643003,1943.7,1943.6,21.23973171]
[1688347786357,0.04643003,1943.7,1943.6,21.2575649]
[1688347786504,0.04643003,1943.7,1943.6,21.23973171]
[1688347786806,0.04643003,1943.7,1943.6,21.25702374]
[1688347787106,0.04643003,1943.7,1943.6,21.23973171]
[1688347788105,0.04643003,1943.7,1943.6,21.26077277]
[1688347789299,0.04643003,1943.7,1943.6,10.31122106]
[1688347789499,0.04643003,1943.7,1943.5,5.16624106]
[1688347789705,5.19125003,1943.7,1943.3,5.14572]
[1688347789909,2.5795,1943.6,1943.4,10.29114]
[1688347790418,2.5795,1943.6,1943.4,12.86395]
[1688347791127,2.5795,1943.6,1943.4,18.28195]
[1688347791283,0.04643003,1943.7,1943.4,21.038145]
[1688347791587,0.04643003,1943.7,1943.6,18.28072]
[1688347791773,0.04643003,1943.7,1943.6,18.77755528]
[1688347791979,0.04643003,1943.7,1943.6,18.76072]
[1688347792187,0.04643003,1943.7,1943.6,20.75636597]
[1688347793225,2.22593003,1943.9,1943.6,20.75636597]
[1688347793394,2.22593003,1943.9,1943.8,5.14456]
[1688347793594,2.22593003,1943.9,1943.7,10.28933]
[1688347793865,2.22593003,1943.9,1943.8,5.14456]
[1688347794117,1.97593003,1943.9,1943.8,5.14456]
[1688347795281,1.97593003,1943.9,1943.7,10.28923]
[1688347796515,1.97593003,1943.9,1943.6,5.62501]
[1688347796516,7.12024003,1943.9,1943.6,5.62501]
[1688347796789,8.44947903,1943.9,1943.6,5.62501]
[1688347797298,8.44947903,1943.9,1943.6,10.7701]
[1688347797482,3.30516903,1943.9,1943.6,10.7701]
[1688347797685,1.97593003,1943.9,1943.6,10.7701]
[1688347799028,1.97593003,1943.9,1943.7,0.01372409]
[1688347799186,1.97593003,1943.9,1943.7,5.14474]
[1688347799888,1.97593003,1943.9,1943.8,0.0136587]
[1688347800090,1.97593003,1943.9,1943.7,5.14474]
[1688347802361,1.97593003,1943.9,1943.7,10.28956]
[1688347803461,1.97593003,1943.9,1943.7,5.14474]
[1688347803617,1.97593003,1943.9,1943.7,12.86197]
[1688347807256,0.1,1944.0,1943.8,0.48]
[1688347807450,0.1,1944.0,1943.9,12.88083274]
[1688347807647,0.1,1944.0,1943.9,18.77883274]
[1688347808278,0.1,1944.0,1943.9,19.67288099]
[1688347808434,0.1,1944.0,1943.9,21.89739209]
[1688347809580,0.1,1944.0,1943.9,21.77616856]
[1688347810085,0.1,1944.0,1943.9,21.76877142]
[1688347813392,0.1,1944.0,1943.9,21.77652241]
[1688347813696,0.1,1944.0,1943.9,30.39684958]
[1688347814795,0.1,1944.0,1943.9,30.40361023]
[1688347816617,0.1,1944.0,1943.9,30.39684958]
[1688347816818,0.1,1944.0,1943.9,30.40222964]
[1688347817113,0.1,1944.0,1943.9,30.40820238]
[1688347817742,0.1,1944.0,1943.9,30.39684958]
[1688347818141,0.1,1944.0,1943.9,30.40294608]
[1688347819654,0.1,1944.0,1943.9,30.39684958]
[1688347819855,0.1,1944.0,1943.9,30.40242599]
[1688347821129,0.1,1944.0,1943.9,30.39684958]
[1688347821476,0.1,1944.0,1943.9,30.40397078]
[1688347821964,0.1,1944.0,1943.9,30.39684958]
[1688347822163,0.1,1944.0,1943.9,30.40390324]
[1688347822520,0.1,1944.0,1943.9,30.39684958]
[1688347824462,0.1,1944.0,1943.9,30.40213461]
[1688347824755,0.1,1944.0,1943.9,30.39684958]
[1688347825328,0.1,1944.0,1943.9,30.4054672]
[1688347825570,0.1,1944.0,1943.9,30.39684958]
[1688347825738,0.1,1944.0,1943.9,30.40592631]
[1688347826145,0.1,1944.0,1943.9,30.39684958]
[1688347826861,0.1,1944.0,1943.9,30.66458929]
[1688347827037,0.1,1944.0,1943.9,30.67171728]
[1688347827952,0.1,1944.0,1943.9,30.66458929]
[1688347830287,0.1,1944.1,1943.9,30.66458929]
[1688347830441,0.1,1944.1,1944.0,27.38331709]
[1688347830638,0.1,1944.1,1944.0,28.31131709]
[1688347830843,0.1,1944.3,1944.0,31.74174942]
[1688347831054,0.1,1944.3,1944.0,29.5070568]
[1688347831278,0.1,1944.3,1944.0,30.84788372]
[1688347831451,0.1,1944.3,1944.2,25.992]
[1688347831659,0.1,1944.3,1944.2,29.03078816]
[1688347831868,0.0593901,1944.9,1944.3,0.01918232]
[1688347832073,0.0593901,1944.9,1944.8,21.76872]
[1688347832290,0.0593901,1944.9,1944.8,21.32372]
[1688347832646,0.0593901,1944.9,1944.8,5.62191]
[1688347832849,0.0593901,1944.9,1944.8,10.76382]
[1688347833188,0.0593901,1944.9,1944.8,5.62191]
[1688347833360,0.0593901,1944.9,1944.8,10.76382]
[1688347835196,0.0593901,1944.9,1944.8,13.33477]
[1688347836397,0.05224845,1944.9,1944.8,13.33477]